[Event "*** SCC Grand Prix: Titled Tuesday Blitz"]
[Site "Chess.com"]
[Date "2020.06.02"]
[Round "2"]
[White "AungTZ"]
[Black "Riptide27"]
[Result "0-1"]
[WhiteElo "1929"]
[BlackElo "2599"]
[TimeControl "180+1"]
[EndTime "10:13:14 PDT"]
[Termination "Riptide27 won by checkmate"]

1. e4 {[%clk 0:02:56.4]} 1... c5 {[%clk 0:02:59.3]} 2. Nf3 {[%clk 0:02:56]} 2...
e6 {[%clk 0:02:59.3]} 3. d4 {[%clk 0:02:55.4]} 3... cxd4 {[%clk 0:03:00.2]} 4.
Nxd4 {[%clk 0:02:55.4]} 4... Nf6 {[%clk 0:03:00.1]} 5. Nc3 {[%clk 0:02:54.8]}
5... d6 {[%clk 0:03:00.2]} 6. Bd3 {[%clk 0:02:54.2]} 6... a6 {[%clk 0:02:56.8]}
7. Be3 {[%clk 0:02:53.6]} 7... b5 {[%clk 0:02:56.2]} 8. a3 {[%clk 0:02:52.7]}
8... Bb7 {[%clk 0:02:56]} 9. Qe2 {[%clk 0:02:52.3]} 9... Nbd7 {[%clk 0:02:54.9]}
10. O-O {[%clk 0:02:51.5]} 10... g6 {[%clk 0:02:54]} 11. Rad1 {[%clk 0:02:48.3]}
11... Bg7 {[%clk 0:02:51.6]} 12. f4 {[%clk 0:02:47.9]} 12... O-O {[%clk
0:02:49.3]} 13. Kh1 {[%clk 0:02:46.2]} 13... Qc7 {[%clk 0:02:46.3]} 14. f5
{[%clk 0:02:36.9]} 14... exf5 {[%clk 0:02:44.7]} 15. exf5 {[%clk 0:02:34.1]}
15... Rae8 {[%clk 0:02:43.1]} 16. Qd2 {[%clk 0:02:25.8]} 16... Ng4 {[%clk
0:02:36.4]} 17. Bg1 {[%clk 0:02:25.3]} 17... Bh6 {[%clk 0:02:35.1]} 18. Rf4
{[%clk 0:02:15.4]} 18... Ndf6 {[%clk 0:02:25.6]} 19. h3 {[%clk 0:01:56.8]} 19...
Nh5 {[%clk 0:02:23.2]} 20. Nce2 {[%clk 0:01:54.6]} 20... Bxf4 {[%clk 0:02:20.4]}
21. Nxf4 {[%clk 0:01:53.8]} 21... Ng3# {[%clk 0:02:20.2]} 0-1

[Event "*** SCC Grand Prix: Titled Tuesday Blitz"]
[Site "Chess.com"]
[Date "2020.06.02"]
[Round "2"]
[White "Dare-Dare"]
[Black "StockholmMissile"]
[Result "0-1"]
[WhiteElo "2217"]
[BlackElo "2440"]
[TimeControl "180+1"]
[EndTime "10:13:16 PDT"]
[Termination "StockholmMissile won by resignation"]

1. Nf3 {[%clk 0:03:00.9]} 1... d5 {[%clk 0:02:58.5]} 2. c4 {[%clk 0:03:01.8]}
2... d4 {[%clk 0:02:57.8]} 3. b4 {[%clk 0:03:01.6]} 3... Bg4 {[%clk 0:02:56.1]}
4. Qb3 {[%clk 0:03:01.1]} 4... Bxf3 {[%clk 0:02:55.9]} 5. Qxf3 {[%clk 0:03:01]}
5... c6 {[%clk 0:02:56.3]} 6. Bb2 {[%clk 0:02:51.3]} 6... e5 {[%clk 0:02:55.7]}
7. a3 {[%clk 0:02:49.5]} 7... Nf6 {[%clk 0:02:53]} 8. d3 {[%clk 0:02:44.7]} 8...
Nbd7 {[%clk 0:02:47.6]} 9. Nd2 {[%clk 0:02:44]} 9... a5 {[%clk 0:02:30.4]} 10.
b5 {[%clk 0:02:21.1]} 10... Qb6 {[%clk 0:02:29.5]} 11. a4 {[%clk 0:02:17.1]}
11... Bb4 {[%clk 0:02:26]} 12. g3 {[%clk 0:02:10.2]} 12... Nc5 {[%clk 0:02:24]}
13. Bg2 {[%clk 0:01:57.1]} 13... Bxd2+ {[%clk 0:02:14.9]} 14. Kxd2 {[%clk
0:01:55]} 14... Nb3+ {[%clk 0:02:15.3]} 15. Kc2 {[%clk 0:01:55.9]} 15... Nxa1+
{[%clk 0:02:15.4]} 16. Rxa1 {[%clk 0:01:56.8]} 16... O-O {[%clk 0:02:12.6]} 17.
Kb3 {[%clk 0:01:55.6]} 17... cxb5 {[%clk 0:02:07.9]} 18. cxb5 {[%clk 0:01:56.5]}
18... Qe6+ {[%clk 0:02:01.5]} 0-1

[Event "*** SCC Grand Prix: Titled Tuesday Blitz"]
[Site "Chess.com"]
[Date "2020.06.02"]
[Round "2"]
[White "FM_VS99"]
[Black "PavelShkapenko"]
[Result "0-1"]
[WhiteElo "2309"]
[BlackElo "2642"]
[TimeControl "180+1"]
[EndTime "10:13:24 PDT"]
[Termination "PavelShkapenko won by checkmate"]

1. Nf3 {[%clk 0:03:00.9]} 1... Nf6 {[%clk 0:02:56.6]} 2. g3 {[%clk 0:02:57.5]}
2... d5 {[%clk 0:02:56]} 3. Bg2 {[%clk 0:02:58.3]} 3... c6 {[%clk 0:02:56.2]} 4.
c4 {[%clk 0:02:57.4]} 4... dxc4 {[%clk 0:02:53.3]} 5. O-O {[%clk 0:02:55.8]}
5... Nbd7 {[%clk 0:02:47.2]} 6. a4 {[%clk 0:02:54.8]} 6... e5 {[%clk 0:02:46.4]}
7. Qc2 {[%clk 0:02:52.9]} 7... Bd6 {[%clk 0:02:44.8]} 8. Na3 {[%clk 0:02:49.2]}
8... Bc7 {[%clk 0:02:39.9]} 9. Nxc4 {[%clk 0:02:47.9]} 9... O-O {[%clk
0:02:40.4]} 10. d3 {[%clk 0:02:47.9]} 10... Re8 {[%clk 0:02:38.9]} 11. Nfd2
{[%clk 0:02:34.8]} 11... Nf8 {[%clk 0:02:27.9]} 12. b4 {[%clk 0:02:32.2]} 12...
Ne6 {[%clk 0:02:27.3]} 13. e3 {[%clk 0:02:28.2]} 13... Ng5 {[%clk 0:02:18.2]}
14. Nb3 {[%clk 0:02:25.9]} 14... Bh3 {[%clk 0:02:16.2]} 15. Nc5 {[%clk
0:02:19.8]} 15... Bxg2 {[%clk 0:02:15.4]} 16. Kxg2 {[%clk 0:02:20]} 16... Qc8
{[%clk 0:01:59.5]} 17. f4 {[%clk 0:02:12.5]} 17... exf4 {[%clk 0:01:48.6]} 18.
gxf4 {[%clk 0:02:09.9]} 18... Qh3+ {[%clk 0:01:45.7]} 19. Kh1 {[%clk 0:02:06.2]}
19... Qxf1# {[%clk 0:01:44.7]} 0-1

[Event "*** SCC Grand Prix: Titled Tuesday Blitz"]
[Site "Chess.com"]
[Date "2020.06.02"]
[Round "2"]
[White "lifeissofun"]
[Black "Ellaijio_B"]
[Result "0-1"]
[WhiteElo "2273"]
[BlackElo "2635"]
[TimeControl "180+1"]
[EndTime "10:13:43 PDT"]
[Termination "Ellaijio_B won by resignation"]

1. e4 {[%clk 0:03:00.9]} 1... c5 {[%clk 0:02:57.3]} 2. Nf3 {[%clk 0:03:01]} 2...
e6 {[%clk 0:02:56.9]} 3. d4 {[%clk 0:03:01.4]} 3... cxd4 {[%clk 0:02:56.9]} 4.
Nxd4 {[%clk 0:03:02.3]} 4... a6 {[%clk 0:02:55.4]} 5. c4 {[%clk 0:03:02.9]} 5...
Nf6 {[%clk 0:02:51.6]} 6. Nc3 {[%clk 0:03:03.2]} 6... Qc7 {[%clk 0:02:52.2]} 7.
Qd3 {[%clk 0:03:02]} 7... Nc6 {[%clk 0:02:50.7]} 8. a3 {[%clk 0:03:01.4]} 8...
Ne5 {[%clk 0:02:45.4]} 9. Qe2 {[%clk 0:02:56.8]} 9... d6 {[%clk 0:02:40.6]} 10.
Be3 {[%clk 0:02:56.4]} 10... b6 {[%clk 0:02:38.9]} 11. h3 {[%clk 0:02:56.1]}
11... Bb7 {[%clk 0:02:38.5]} 12. f3 {[%clk 0:02:52.3]} 12... Rc8 {[%clk
0:02:37.5]} 13. b3 {[%clk 0:02:52.1]} 13... b5 {[%clk 0:02:35.3]} 14. f4 {[%clk
0:02:38]} 14... Ned7 {[%clk 0:02:34.7]} 15. Rc1 {[%clk 0:02:34.6]} 15... bxc4
{[%clk 0:02:34.4]} 16. Qxc4 {[%clk 0:02:26.8]} 16... Qa5 {[%clk 0:02:07.3]} 17.
Qd3 {[%clk 0:02:09.2]} 17... Nc5 {[%clk 0:02:02.4]} 18. Qc2 {[%clk 0:01:54.4]}
18... Ncxe4 {[%clk 0:02:00.6]} 19. b4 {[%clk 0:01:54.4]} 19... Qxa3 {[%clk
0:01:58.6]} 20. Ncb5 {[%clk 0:01:42.5]} 20... Qxe3+ {[%clk 0:01:54.8]} 0-1

[Event "*** SCC Grand Prix: Titled Tuesday Blitz"]
[Site "Chess.com"]
[Date "2020.06.02"]
[Round "2"]
[White "Papa12341234"]
[Black "ashookk"]
[Result "1-0"]
[WhiteElo "2533"]
[BlackElo "2204"]
[TimeControl "180+1"]
[EndTime "10:13:50 PDT"]
[Termination "Papa12341234 won by resignation"]

1. e4 {[%clk 0:03:00.9]} 1... e6 {[%clk 0:02:59.9]} 2. d4 {[%clk 0:03:01.2]}
2... d5 {[%clk 0:02:41.2]} 3. Nd2 {[%clk 0:03:01.5]} 3... Be7 {[%clk 0:02:38.8]}
4. Bd3 {[%clk 0:02:45.3]} 4... c5 {[%clk 0:02:25.7]} 5. dxc5 {[%clk 0:02:46.2]}
5... Nf6 {[%clk 0:02:25]} 6. Qe2 {[%clk 0:02:42.3]} 6... Nc6 {[%clk 0:02:23.2]}
7. Ngf3 {[%clk 0:02:39.6]} 7... O-O {[%clk 0:02:23.1]} 8. O-O {[%clk 0:02:37.3]}
8... Nd7 {[%clk 0:02:23.7]} 9. exd5 {[%clk 0:02:35.8]} 9... exd5 {[%clk
0:02:24.6]} 10. c3 {[%clk 0:02:33]} 10... Nxc5 {[%clk 0:02:25]} 11. Bc2 {[%clk
0:02:33]} 11... b6 {[%clk 0:02:21.2]} 12. Qd1 {[%clk 0:02:23.5]} 12... Ba6
{[%clk 0:02:20.7]} 13. Re1 {[%clk 0:02:23.7]} 13... Bd6 {[%clk 0:02:20.6]} 14.
Nb3 {[%clk 0:02:23.4]} 14... Rc8 {[%clk 0:02:09.8]} 15. Nbd4 {[%clk 0:02:21.7]}
15... Nxd4 {[%clk 0:02:08.9]} 16. Nxd4 {[%clk 0:02:22.6]} 16... Qh4 {[%clk
0:02:02.8]} 17. g3 {[%clk 0:02:22]} 17... Qf6 {[%clk 0:01:54.5]} 18. Qh5 {[%clk
0:02:20.8]} 18... Nd3 {[%clk 0:01:43.7]} 19. Bxd3 {[%clk 0:02:18.9]} 19... Bxd3
{[%clk 0:01:44.6]} 20. Qxd5 {[%clk 0:02:18.6]} 20... Rfe8 {[%clk 0:01:37.7]} 21.
Bd2 {[%clk 0:02:16.6]} 21... Bc5 {[%clk 0:01:30.5]} 22. Rxe8+ {[%clk 0:02:09.4]}
22... Rxe8 {[%clk 0:01:30.1]} 23. Re1 {[%clk 0:02:10.2]} 23... Rxe1+ {[%clk
0:01:29]} 24. Bxe1 {[%clk 0:02:11.1]} 24... Bxd4 {[%clk 0:01:26.3]} 25. Qa8+
{[%clk 0:02:10.7]} 1-0

[Event "*** SCC Grand Prix: Titled Tuesday Blitz"]
[Site "Chess.com"]
[Date "2020.06.02"]
[Round "2"]
[White "Phriex"]
[Black "lrestevez"]
[Result "0-1"]
[WhiteElo "2381"]
[BlackElo "2154"]
[TimeControl "180+1"]
[EndTime "10:13:50 PDT"]
[Termination "lrestevez won by resignation"]

1. d4 {[%clk 0:03:00]} 1... Nf6 {[%clk 0:02:58.8]} 2. c4 {[%clk 0:02:58.3]} 2...
e5 {[%clk 0:02:58.8]} 3. dxe5 {[%clk 0:02:54.8]} 3... Ng4 {[%clk 0:02:58.7]} 4.
Nf3 {[%clk 0:02:45.7]} 4... Bc5 {[%clk 0:02:56.2]} 5. e3 {[%clk 0:02:45.4]} 5...
Nc6 {[%clk 0:02:55.1]} 6. Be2 {[%clk 0:02:44.1]} 6... Ngxe5 {[%clk 0:02:54.1]}
7. O-O {[%clk 0:02:43.7]} 7... O-O {[%clk 0:02:53.8]} 8. b3 {[%clk 0:02:43.1]}
8... a5 {[%clk 0:02:53.8]} 9. Bb2 {[%clk 0:02:40.5]} 9... Nxf3+ {[%clk
0:02:54.2]} 10. Bxf3 {[%clk 0:02:40.7]} 10... Re8 {[%clk 0:02:55.1]} 11. Nc3
{[%clk 0:02:40.1]} 11... Ne5 {[%clk 0:02:54.7]} 12. Na4 {[%clk 0:02:36.6]} 12...
Bf8 {[%clk 0:02:51.7]} 13. Rc1 {[%clk 0:02:26.9]} 13... Ra6 {[%clk 0:02:50.7]}
14. Nc3 {[%clk 0:02:04.5]} 14... Rh6 {[%clk 0:02:49.2]} 15. Ne4 {[%clk 0:02:04]}
15... Qh4 {[%clk 0:02:43.2]} 16. h3 {[%clk 0:02:01.8]} 16... d6 {[%clk
0:02:40.3]} 17. Ng3 {[%clk 0:01:55.6]} 17... Bxh3 {[%clk 0:02:28.1]} 18. gxh3
{[%clk 0:01:54.7]} 18... Qxh3 {[%clk 0:02:24.5]} 19. Re1 {[%clk 0:01:52.9]}
19... Qh2+ {[%clk 0:02:23.7]} 20. Kf1 {[%clk 0:01:53]} 20... Rf6 {[%clk
0:02:23.5]} 21. Bg2 {[%clk 0:01:45.2]} 21... Qxg3 {[%clk 0:02:16.8]} 22. f4
{[%clk 0:01:35.7]} 22... Ng4 {[%clk 0:02:02.2]} 23. Qf3 {[%clk 0:01:35.3]} 23...
Nh2+ {[%clk 0:02:00.6]} 0-1

[Event "*** SCC Grand Prix: Titled Tuesday Blitz"]
[Site "Chess.com"]
[Date "2020.06.02"]
[Round "2"]
[White "Shivagami"]
[Black "SavelievAlexei"]
[Result "1-0"]
[WhiteElo "2260"]
[BlackElo "2438"]
[TimeControl "180+1"]
[EndTime "10:14:03 PDT"]
[Termination "Shivagami won by resignation"]

1. d4 {[%clk 0:03:00.9]} 1... d6 {[%clk 0:03:00.5]} 2. c4 {[%clk 0:02:55.8]}
2... Nf6 {[%clk 0:03:01]} 3. Nc3 {[%clk 0:02:55.3]} 3... Nbd7 {[%clk 0:03:01.6]}
4. e4 {[%clk 0:02:54.7]} 4... e5 {[%clk 0:03:02.2]} 5. d5 {[%clk 0:02:50.2]}
5... g6 {[%clk 0:03:02]} 6. f4 {[%clk 0:02:47.6]} 6... Bg7 {[%clk 0:03:01.6]} 7.
Nf3 {[%clk 0:02:46]} 7... O-O {[%clk 0:03:00.9]} 8. Bd3 {[%clk 0:02:46.2]} 8...
Qe7 {[%clk 0:03:00.5]} 9. O-O {[%clk 0:02:45.3]} 9... Nh5 {[%clk 0:03:01]} 10.
f5 {[%clk 0:02:41.1]} 10... Nc5 {[%clk 0:03:01.1]} 11. Bc2 {[%clk 0:02:36.2]}
11... gxf5 {[%clk 0:02:58]} 12. exf5 {[%clk 0:02:29.1]} 12... e4 {[%clk
0:02:57.9]} 13. Ng5 {[%clk 0:02:17]} 13... Nf6 {[%clk 0:02:52.7]} 14. Qe1 {[%clk
0:01:56.7]} 14... h6 {[%clk 0:02:48.9]} 15. Ngxe4 {[%clk 0:01:52.5]} 15... Nfxe4
{[%clk 0:02:48.7]} 16. Nxe4 {[%clk 0:01:44.4]} 16... Re8 {[%clk 0:02:42.9]} 17.
f6 {[%clk 0:01:38.7]} 17... Qe5 {[%clk 0:02:41.8]} 18. Bf4 {[%clk 0:01:04.3]}
18... Qd4+ {[%clk 0:02:24.8]} 19. Be3 {[%clk 0:01:04.1]} 19... Qxc4 {[%clk
0:02:24.8]} 20. Qg3 {[%clk 0:01:02.1]} 1-0

[Event "*** SCC Grand Prix: Titled Tuesday Blitz"]
[Site "Chess.com"]
[Date "2020.06.02"]
[Round "2"]
[White "francyIM"]
[Black "Koalaskakistis"]
[Result "1-0"]
[WhiteElo "2661"]
[BlackElo "2399"]
[TimeControl "180+1"]
[EndTime "10:14:04 PDT"]
[Termination "francyIM won by resignation"]

1. d4 {[%clk 0:03:00.9]} 1... f5 {[%clk 0:03:00.1]} 2. c4 {[%clk 0:02:59.8]}
2... Nf6 {[%clk 0:03:00.2]} 3. g3 {[%clk 0:02:58.7]} 3... d6 {[%clk 0:02:58.7]}
4. Bg2 {[%clk 0:02:58.4]} 4... e6 {[%clk 0:02:56]} 5. Nf3 {[%clk 0:02:58.8]}
5... Be7 {[%clk 0:02:56.4]} 6. O-O {[%clk 0:02:59.2]} 6... O-O {[%clk
0:02:57.3]} 7. Nc3 {[%clk 0:02:59.2]} 7... Ne4 {[%clk 0:02:56.7]} 8. Qc2 {[%clk
0:02:58.7]} 8... Nxc3 {[%clk 0:02:56.6]} 9. bxc3 {[%clk 0:02:57.1]} 9... Nc6
{[%clk 0:02:55.9]} 10. e4 {[%clk 0:02:56.6]} 10... e5 {[%clk 0:02:55.7]} 11. c5
{[%clk 0:02:48.4]} 11... Kh8 {[%clk 0:02:53.5]} 12. cxd6 {[%clk 0:02:48.2]}
12... cxd6 {[%clk 0:02:54.4]} 13. dxe5 {[%clk 0:02:48.2]} 13... dxe5 {[%clk
0:02:55.3]} 14. exf5 {[%clk 0:02:47.2]} 14... Bxf5 {[%clk 0:02:56.2]} 15. Qe2
{[%clk 0:02:47.5]} 15... Bd3 {[%clk 0:02:54.1]} 16. Qe3 {[%clk 0:02:46.2]} 16...
Bxf1 {[%clk 0:02:44.6]} 17. Bxf1 {[%clk 0:02:47.1]} 17... Qb6 {[%clk 0:02:29]}
18. Bg2 {[%clk 0:02:40.5]} 18... Bc5 {[%clk 0:02:26.8]} 19. Qe2 {[%clk
0:02:37.4]} 19... e4 {[%clk 0:02:26.9]} 20. Qxe4 {[%clk 0:02:37.3]} 20... Bxf2+
{[%clk 0:02:26.4]} 21. Kh1 {[%clk 0:02:37.7]} 21... Rae8 {[%clk 0:02:26.2]} 22.
Qc2 {[%clk 0:02:37.3]} 22... Be3 {[%clk 0:01:49.2]} 23. Ba3 {[%clk 0:02:34.4]}
23... Rf7 {[%clk 0:01:48.2]} 24. Re1 {[%clk 0:02:33.6]} 24... Rd8 {[%clk
0:01:27.6]} 25. Qe4 {[%clk 0:02:31.7]} 25... Bc5 {[%clk 0:01:27.1]} 26. Ng5
{[%clk 0:02:29.1]} 26... g6 {[%clk 0:01:05.3]} 27. Nxf7+ {[%clk 0:02:27.2]}
27... Kg7 {[%clk 0:01:05.5]} 28. Bxc5 {[%clk 0:02:27.8]} 1-0

[Event "*** SCC Grand Prix: Titled Tuesday Blitz"]
[Site "Chess.com"]
[Date "2020.06.02"]
[Round "2"]
[White "dbrankovic68"]
[Black "Chuchofrio1"]
[Result "0-1"]
[WhiteElo "2446"]
[BlackElo "2268"]
[TimeControl "180+1"]
[EndTime "10:14:09 PDT"]
[Termination "Chuchofrio1 won on time"]

1. e4 {[%clk 0:02:59.9]} 1... c5 {[%clk 0:02:59.2]} 2. Nf3 {[%clk 0:02:59.8]}
2... e6 {[%clk 0:02:59.7]} 3. d4 {[%clk 0:02:59.2]} 3... cxd4 {[%clk 0:03:00.2]}
4. Nxd4 {[%clk 0:02:59.8]} 4... Nf6 {[%clk 0:03:00.5]} 5. Nc3 {[%clk 0:03:00.2]}
5... Nc6 {[%clk 0:03:00.6]} 6. Nxc6 {[%clk 0:02:57.7]} 6... bxc6 {[%clk
0:02:59.8]} 7. e5 {[%clk 0:02:57.9]} 7... Nd5 {[%clk 0:02:59.1]} 8. Ne4 {[%clk
0:02:58.4]} 8... Qc7 {[%clk 0:02:59.3]} 9. f4 {[%clk 0:02:58]} 9... Qb6 {[%clk
0:02:58.3]} 10. c4 {[%clk 0:02:58]} 10... Ne3 {[%clk 0:02:58.1]} 11. Qd3 {[%clk
0:02:25.2]} 11... Bb4+ {[%clk 0:02:56.8]} 12. Ke2 {[%clk 0:02:19.1]} 12... Nxc4
{[%clk 0:02:48.6]} 0-1

[Event "*** SCC Grand Prix: Titled Tuesday Blitz"]
[Site "Chess.com"]
[Date "2020.06.02"]
[Round "2"]
[White "GregShahade"]
[Black "jaskol95"]
[Result "1-0"]
[WhiteElo "2596"]
[BlackElo "2275"]
[TimeControl "180+1"]
[EndTime "10:14:16 PDT"]
[Termination "GregShahade won by resignation"]

1. e4 {[%clk 0:03:00.9]} 1... e6 {[%clk 0:03:00.2]} 2. d4 {[%clk 0:03:00.6]}
2... d5 {[%clk 0:03:00.4]} 3. Nd2 {[%clk 0:03:01.1]} 3... Nf6 {[%clk 0:03:00.5]}
4. e5 {[%clk 0:03:01.2]} 4... Nfd7 {[%clk 0:03:01.1]} 5. c3 {[%clk 0:03:01.6]}
5... c5 {[%clk 0:03:01.6]} 6. Bd3 {[%clk 0:03:01.2]} 6... Nc6 {[%clk 0:03:02.1]}
7. Ne2 {[%clk 0:03:01.7]} 7... cxd4 {[%clk 0:03:02.7]} 8. cxd4 {[%clk
0:03:01.7]} 8... f6 {[%clk 0:03:03.3]} 9. exf6 {[%clk 0:03:02.4]} 9... Nxf6
{[%clk 0:03:03.7]} 10. O-O {[%clk 0:03:02.5]} 10... Bd6 {[%clk 0:03:02.4]} 11.
Nf3 {[%clk 0:03:03.1]} 11... Qc7 {[%clk 0:03:01.1]} 12. Nc3 {[%clk 0:03:02.3]}
12... a6 {[%clk 0:03:00.6]} 13. Be3 {[%clk 0:03:02.3]} 13... O-O {[%clk
0:02:59.7]} 14. Rc1 {[%clk 0:03:02.8]} 14... Qb8 {[%clk 0:02:54.6]} 15. Bb1
{[%clk 0:02:55.6]} 15... Bd7 {[%clk 0:02:42]} 16. h3 {[%clk 0:02:55.3]} 16...
Kh8 {[%clk 0:02:16.5]} 17. a3 {[%clk 0:02:54.6]} 17... Be8 {[%clk 0:01:51.3]}
18. Ng5 {[%clk 0:02:54.2]} 18... Bf7 {[%clk 0:01:37.5]} 19. Re1 {[%clk
0:02:47.4]} 19... h6 {[%clk 0:01:34]} 20. Nxf7+ {[%clk 0:02:46.1]} 20... Rxf7
{[%clk 0:01:33.9]} 21. Qd3 {[%clk 0:02:44.7]} 21... e5 {[%clk 0:01:25.9]} 22.
Nxd5 {[%clk 0:02:20.1]} 22... e4 {[%clk 0:01:05.3]} 23. Qb3 {[%clk 0:02:19.5]}
23... Nxd5 {[%clk 0:01:05.2]} 24. Qxd5 {[%clk 0:02:18.9]} 24... Qc7 {[%clk
0:01:02]} 25. Qxe4 {[%clk 0:02:16.7]} 25... g5 {[%clk 0:01:01.7]} 26. d5 {[%clk
0:02:15.4]} 26... Ne5 {[%clk 0:00:58.3]} 1-0

[Event "*** SCC Grand Prix: Titled Tuesday Blitz"]
[Site "Chess.com"]
[Date "2020.06.02"]
[Round "2"]
[White "Kavyev_Ruslan"]
[Black "GM_Levan_Pantsulaia"]
[Result "0-1"]
[WhiteElo "2541"]
[BlackElo "2842"]
[TimeControl "180+1"]
[EndTime "10:14:19 PDT"]
[Termination "GM_Levan_Pantsulaia won by resignation"]

1. d4 {[%clk 0:03:00.9]} 1... Nf6 {[%clk 0:02:49.4]} 2. c4 {[%clk 0:03:01.3]}
2... c5 {[%clk 0:02:49]} 3. d5 {[%clk 0:03:01.1]} 3... e6 {[%clk 0:02:49.4]} 4.
Nc3 {[%clk 0:02:58.5]} 4... exd5 {[%clk 0:02:49.8]} 5. cxd5 {[%clk 0:02:59.4]}
5... d6 {[%clk 0:02:50]} 6. Nf3 {[%clk 0:02:59.9]} 6... g6 {[%clk 0:02:49.8]} 7.
Nd2 {[%clk 0:03:00.6]} 7... a6 {[%clk 0:02:48]} 8. a4 {[%clk 0:02:59.7]} 8...
Nbd7 {[%clk 0:02:48.6]} 9. e4 {[%clk 0:03:00.1]} 9... Bg7 {[%clk 0:02:49.1]} 10.
Be2 {[%clk 0:03:00.1]} 10... O-O {[%clk 0:02:49.4]} 11. O-O {[%clk 0:03:00.8]}
11... Re8 {[%clk 0:02:49.5]} 12. f4 {[%clk 0:03:01.5]} 12... c4 {[%clk
0:02:43.4]} 13. Bxc4 {[%clk 0:02:58.1]} 13... Nc5 {[%clk 0:02:32.5]} 14. Re1
{[%clk 0:02:53.9]} 14... Ng4 {[%clk 0:02:02.6]} 15. Nf3 {[%clk 0:02:41.4]} 15...
Qb6 {[%clk 0:02:01.4]} 16. a5 {[%clk 0:02:41.3]} 16... Qa7 {[%clk 0:02:00.8]}
17. Kf1 {[%clk 0:01:46.4]} 17... Nxe4 {[%clk 0:01:55.8]} 18. Nxe4 {[%clk
0:01:44.1]} 18... Rxe4 {[%clk 0:01:54.9]} 19. Nd4 {[%clk 0:01:41.4]} 19... Nxh2+
{[%clk 0:01:48.7]} 20. Kg1 {[%clk 0:01:41.1]} 20... Qxd4+ {[%clk 0:01:34.1]} 21.
Qxd4 {[%clk 0:01:40.3]} 21... Bxd4+ {[%clk 0:01:32.5]} 22. Kxh2 {[%clk
0:01:39.2]} 22... Rxe1 {[%clk 0:01:32.4]} 0-1

[Event "*** SCC Grand Prix: Titled Tuesday Blitz"]
[Site "Chess.com"]
[Date "2020.06.02"]
[Round "2"]
[White "Kaua18"]
[Black "FlightsOfFancy"]
[Result "1-0"]
[WhiteElo "2339"]
[BlackElo "1820"]
[TimeControl "180+1"]
[EndTime "10:14:25 PDT"]
[Termination "Kaua18 won by resignation"]

1. e4 {[%clk 0:03:00.9]} 1... Nf6 {[%clk 0:02:59.4]} 2. e5 {[%clk 0:02:54.7]}
2... Nd5 {[%clk 0:02:59.9]} 3. d4 {[%clk 0:02:54.8]} 3... d6 {[%clk 0:03:00.1]}
4. c4 {[%clk 0:02:52.3]} 4... Nb6 {[%clk 0:02:59.8]} 5. exd6 {[%clk 0:02:52.2]}
5... cxd6 {[%clk 0:02:59.9]} 6. Nc3 {[%clk 0:02:52.1]} 6... g6 {[%clk 0:03:00]}
7. h3 {[%clk 0:02:51.3]} 7... Bg7 {[%clk 0:02:59.5]} 8. Nf3 {[%clk 0:02:49.3]}
8... O-O {[%clk 0:02:59.3]} 9. Be3 {[%clk 0:02:48.5]} 9... Nc6 {[%clk
0:02:53.5]} 10. Be2 {[%clk 0:02:46.8]} 10... Bf5 {[%clk 0:02:48.2]} 11. Qd2
{[%clk 0:02:45.5]} 11... d5 {[%clk 0:02:45.9]} 12. g4 {[%clk 0:02:25.8]} 12...
Be4 {[%clk 0:02:26.6]} 13. c5 {[%clk 0:01:59.8]} 13... Bxf3 {[%clk 0:02:19.5]}
14. Bxf3 {[%clk 0:01:54.1]} 14... Nc4 {[%clk 0:02:19.4]} 15. Qe2 {[%clk
0:01:53.7]} 15... Nxd4 {[%clk 0:02:02.6]} 16. Bxd4 {[%clk 0:01:49]} 16... Bxd4
{[%clk 0:02:02.2]} 17. Nxd5 {[%clk 0:01:34.1]} 17... Nxb2 {[%clk 0:01:54.5]} 18.
O-O {[%clk 0:01:26.5]} 18... Bxc5 {[%clk 0:01:37.4]} 19. Qxb2 {[%clk 0:01:25.1]}
19... e6 {[%clk 0:01:30.8]} 20. Nf6+ {[%clk 0:01:16.9]} 1-0

[Event "*** SCC Grand Prix: Titled Tuesday Blitz"]
[Site "Chess.com"]
[Date "2020.06.02"]
[Round "2"]
[White "Parhamov"]
[Black "anastasiyakarlovych"]
[Result "1-0"]
[WhiteElo "3077"]
[BlackElo "1850"]
[TimeControl "180+1"]
[EndTime "10:14:26 PDT"]
[Termination "Parhamov won by resignation"]

1. e4 {[%clk 0:03:00.9]} 1... e5 {[%clk 0:02:59.8]} 2. Nf3 {[%clk 0:03:00.6]}
2... Nc6 {[%clk 0:02:59.6]} 3. Bb5 {[%clk 0:03:01.1]} 3... a6 {[%clk 0:02:58.7]}
4. Ba4 {[%clk 0:03:00.8]} 4... d6 {[%clk 0:02:58.5]} 5. c3 {[%clk 0:03:00.8]}
5... Bd7 {[%clk 0:02:57.9]} 6. d4 {[%clk 0:03:01]} 6... Nge7 {[%clk 0:02:57.2]}
7. O-O {[%clk 0:03:01]} 7... Ng6 {[%clk 0:02:57]} 8. Re1 {[%clk 0:03:00.6]} 8...
Be7 {[%clk 0:02:55.2]} 9. Be3 {[%clk 0:03:00.7]} 9... b5 {[%clk 0:02:53.4]} 10.
Bc2 {[%clk 0:03:00.5]} 10... h6 {[%clk 0:02:53.1]} 11. Nbd2 {[%clk 0:03:00.5]}
11... Bg5 {[%clk 0:02:52.5]} 12. Nf1 {[%clk 0:02:58.5]} 12... Qf6 {[%clk
0:02:33.3]} 13. h3 {[%clk 0:02:50.7]} 13... Bxe3 {[%clk 0:02:30.8]} 14. fxe3
{[%clk 0:02:49.9]} 14... Nh4 {[%clk 0:02:20.7]} 15. N1h2 {[%clk 0:02:47]} 15...
O-O {[%clk 0:02:05.4]} 16. Rf1 {[%clk 0:02:46.9]} 16... Nxf3+ {[%clk 0:02:04.5]}
17. Nxf3 {[%clk 0:02:47.8]} 17... Qe7 {[%clk 0:01:56.4]} 18. Rf2 {[%clk
0:02:47.7]} 18... Rad8 {[%clk 0:01:36.1]} 19. Qd2 {[%clk 0:02:46.9]} 19... Bc8
{[%clk 0:01:33.9]} 20. Raf1 {[%clk 0:02:46.3]} 20... Bb7 {[%clk 0:01:25.1]} 21.
b4 {[%clk 0:02:45.7]} 21... Nb8 {[%clk 0:01:23.2]} 22. Qe2 {[%clk 0:02:45.9]}
22... Nd7 {[%clk 0:01:21.9]} 23. Nd2 {[%clk 0:02:46.1]} 23... Qe6 {[%clk
0:01:11.7]} 24. Bb3 {[%clk 0:02:45.8]} 24... Qe7 {[%clk 0:01:10.5]} 25. Rxf7
{[%clk 0:02:45.1]} 25... Rxf7 {[%clk 0:01:08]} 26. Rxf7 {[%clk 0:02:46]} 26...
Qxf7 {[%clk 0:01:07.4]} 27. Bxf7+ {[%clk 0:02:45.8]} 27... Kxf7 {[%clk
0:01:08.3]} 28. d5 {[%clk 0:02:45]} 28... Nf6 {[%clk 0:01:07.8]} 29. c4 {[%clk
0:02:45]} 29... c6 {[%clk 0:01:05.5]} 30. Nb3 {[%clk 0:02:41.5]} 30... bxc4
{[%clk 0:01:02]} 31. Na5 {[%clk 0:02:41.8]} 31... cxd5 {[%clk 0:00:53.9]} 32.
Nxb7 {[%clk 0:02:41.5]} 32... dxe4 {[%clk 0:00:53.2]} 33. Nxd8+ {[%clk
0:02:41.1]} 1-0